[Event "VIII Open Semana Santa 2024"]
[Site "San Vicente del Raspeig"]
[Date "2024.04.01"]
[Round "9.7"]
[White "Movsziszian, Karen"]
[Black "Lamard, Guillaume"]
[Result "1-0"]
[ECO "C00"]
[WhiteElo "2439"]
[BlackElo "2483"]
[Annotator "TA"]
[PlyCount "119"]
[EventDate "2024.03.27"]
[EventType "swiss"]
[EventCountry "ESP"]
[SourceTitle "playchess.com"]
[Source "ChessBase"]
[SourceQuality "1"]
[TimeControl "5400+30"]

{[%evp 44,119,0,0,0,0,0,-32,16,0,75,84,68,0,0,-120,-110,-94,-32,-24,0,0,16,36,114,115,114,71,102,96,134,141,137,121,137,140,130,112,97,74,113,110,153,141,154,156,295,277,249,220,175,128,599,634,567,610,615,619,627,560,832,865,945,937,793,505,1109,1066,1028,1104,1025,1022,931,834,796,785,727,681]} 1. g3 {[%emt 0:00:03]} d5 {[%emt 0:08:58]} 2. Nf3 {[%emt 0:00:05]} Nf6 {[%emt 0:00:05]} 3. Bg2 {[%emt 0:00:04]} e6 {[%emt 0:00:02]} 4. O-O {[%emt 0:01:36]} Be7 {[%emt 0:01:36]} 5. d3 {[%emt 0:00:35]} O-O {[%emt 0:00:07]} 6. Nbd2 {[%emt 0:00:07]} c5 {[%emt 0:00:04]} 7. e4 {[%emt 0:00:04]} Nc6 {[%emt 0:00:05]} 8. a4 {[%emt 0:01:05]} h6 $146 {[%emt 0:00:21] C00: French: Unusual White 2nd moves.} ({Predecessor:} 8... Qc7 9. Re1 dxe4 10. dxe4 e5 11. c3 Be6 12. Ng5 Bg4 13. Qc2 h6 14. Ngf3 Be6 15. b3 {½-½ Dardha,D (2631)-Svane,F (2600) Maastricht Limburg op 15th 2023 (7)}) 9. c3 {[%emt 0:02:17]} b6 {[%emt 0:01:02]} 10. Re1 {[%emt 0:06:24]} Ba6 {[%emt 0:01:20]} 11. e5 {[%emt 0:06:30]} Nd7 {[%emt 0:01:37]} 12. Nf1 {[%emt 0:00:46]} Qc7 {[%emt 0:01:10]} 13. Qe2 {[%emt 0:00:47]} Rae8 {[%emt 0:06:24]} 14. h4 {[%emt 0:02:35]} f6 {[%emt 0:03:57]} 15. exf6 {[%emt 0:02:37]} Bxf6 {[%emt 0:02:39]} 16. N1h2 {[%emt 0:10:33]} e5 {[%emt 0:01:12]} 17. Qc2 {[%emt 0:02:20]} Qd6 {[%emt 0:04:33]} 18. Ng4 {[%emt 0:02:10]} Bd8 {[%emt 0:02:08]} 19. Nd2 {[%emt 0:01:31]} e4 {[%emt 0:13:26]} 20. dxe4 {[%emt 0:00:47]} d4 {[%emt 0:02:04]} 21. Nf1 {[%emt 0:11:57]} Qg6 {[%emt 0:09:25]} 22. Ngh2 {[%emt 0:10:09]} Nde5 {[%emt 0:05:28]} 23. f4 {[%emt 0:00:52]} Nd3 {[%emt 0:01:15]} 24. Rd1 {[%emt 0:00:58]} c4 {[%emt 0:03:12]} 25. b3 {[%emt 0:03:37]} Nc5 {[%emt 0:07:42]} (25... dxc3 $15 26. bxc4 Ncb4 27. Qxc3 Bf6) 26. cxd4 {[%emt 0:03:43]} cxb3 {[%emt 0:01:17]} (26... Nxb3 $11 27. Bb2 Bf6 (27... Nxa1 28. Bxa1 Nb4 29. Qc3 $14)) 27. Qb1 $1 $16 {[%emt 0:00:40]} Nxe4 {[%emt 0:00:05]} 28. Qxb3+ {[%emt 0:02:24]} ({White should try} 28. Re1 $1 $14 Bf6 29. Rxe4 Nxd4 (29... Bxd4+ 30. Rxd4 Qxb1 31. Rxb1 $11) 30. Bb2 Rxe4 31. Bxe4) 28... Kh8 $11 {[%emt 0:00:10]} 29. Ba3 {[%emt 0:00:30] [#]} (29. Qb1 $11 {keeps the balance.} Bf6 30. Bb2) 29... Bf6 $1 $17 {[%emt 0:04:55]} 30. Bb2 {[%emt 0:04:33]} (30. Bxf8 $2 Nxd4 31. Rxd4 Bxd4+ 32. Kh1 Bxa1 $19) 30... Na5 {[%emt 0:07:05]} (30... Be2 $17 {[%cal Oa7a5] Strongly threatening ...a5!} 31. Rac1 Bxd1 32. Rxd1 a5) 31. Qc2 $15 {[%emt 0:00:07]} Nc4 {[%emt 0:02:28]} (31... Bxh4 {feels hotter.} 32. Re1 Bxg3 33. Rxe4 Bf2+) 32. Ba3 {[%emt 0:00:50]} Nxa3 {[%emt 0:00:53]} 33. Rxa3 {[%emt 0:00:01]} Qh7 {[%emt 0:00:19]} (33... Qh5 $14 34. Bf3 (34. Bxe4 Rxe4 35. Nf3 Bb7 $17) 34... Qf5 (34... Qd5 35. Re3 $16)) 34. Ng4 $16 {[%emt 0:01:21]} Bxf1 {[%emt 0:05:42]} 35. Bxf1 {[%emt 0:02:10]} ({Don't do} 35. Rxf1 Bxd4+ 36. Kh2 Nc5 $14) (35. Nxf6 {simplifies} Nxf6 36. Qxh7+ Kxh7 37. Bxf1 Rc8 38. Bd3+) 35... Qf5 {[%emt 0:00:44]} 36. Nxf6 {[%emt 0:03:23]} Qxf6 {[%emt 0:00:03]} 37. Re3 {[%emt 0:01:56]} Nd6 {[%emt 0:00:14]} 38. Re5 {[%emt 0:00:49]} Nf7 {[%emt 0:00:03]} 39. Rxe8 {[%emt 0:03:34]} Rxe8 {[%emt 0:00:03]} 40. Bg2 {[%emt 0:00:24]} Nd6 {[%emt 0:01:04]} 41. Kh2 {[%emt 0:02:12]} Re3 {[%emt 0:01:03]} 42. d5 {[%emt 0:01:00]} h5 {[%emt 0:01:13]} 43. Rc1 {[%emt 0:01:42]} Qf7 {[%emt 0:02:56]} 44. Qd2 {[%emt 0:01:23]} Qe7 {[%emt 0:00:26]} (44... Qe8 $16 {was called for.}) 45. Rc6 $18 {[%emt 0:00:53]} Re2 {[%emt 0:01:05]} 46. Qd3 {[%emt 0:00:08]} Ra2 {[%emt 0:00:46]} 47. Qf3 {[%emt 0:00:53]} (47. Rc2 $18 Rxc2 48. Qxc2) 47... g6 $2 {[%emt 0:00:36][%mdl 8192] [#]} (47... Kg8 $16 {is tougher.} 48. Rc3 (48. Qxh5 $2 {too greedy.} Qe4 $19) 48... Qf7) 48. Qc3+ $1 $18 {[%emt 0:03:30]} Kg8 {[%emt 0:00:08]} 49. Qe5 {[%emt 0:00:02]} Qxe5 {[%emt 0:00:23]} 50. fxe5 {[%emt 0:00:02]} Nf5 {[%emt 0:00:06]} 51. Kh3 {[%emt 0:03:15]} (51. Rxg6+ Kh7 52. Rg5 Ne3 53. Rxh5+ Kg7 $16) 51... Ne3 {[%emt 0:00:50]} 52. d6 {[%emt 0:00:55]} Kf7 {[%emt 0:00:47]} 53. d7 {[%emt 0:01:08]} Ke7 {[%emt 0:00:09]} 54. e6 {[%emt 0:01:02]} Rd2 {[%emt 0:01:27]} (54... Rxg2 $142 55. Rc8 Rd2 56. Re8+ Kf6 57. d8=Q+ (57. d8=B+ Ke5 $11) 57... Rxd8 58. Rxd8 Ng4) 55. Rc8 $18 {[%emt 0:00:19]} Nxg2 {[%emt 0:00:21]} 56. Re8+ {[%emt 0:00:10]} Kf6 {[%emt 0:00:02]} 57. d8=Q+ {[%emt 0:00:27]} Rxd8 {[%emt 0:00:04]} 58. Rxd8 {[%emt 0:00:04]} Ne3 {[%emt 0:00:05]} 59. Rf8+ {[%emt 0:00:41]} Ke7 {[%emt 0:00:06]} 60. Rg8 {[%emt 0:00:17]} 1-0

[Event "VIII Open Semana Santa 2024"]
[Site "San Vicente del Raspeig"]
[Date "2024.04.01"]
[Round "9.8"]
[White "Labiano Hernandez, Juan"]
[Black "Urazayev, Arystanbek"]
[Result "*"]
[ECO "B32"]
[WhiteElo "2362"]
[BlackElo "2476"]
[Annotator "TA"]
[PlyCount "37"]
[EventDate "2024.03.27"]
[EventType "swiss"]
[EventCountry "ESP"]
[SourceTitle "playchess.com"]
[Source "ChessBase"]
[SourceQuality "1"]
[TimeControl "5400+30"]

{[%evp 10,37,25,29,29,20,29,25,32,33,47,53,42,8,19,0,2,0,22,10,24,9,8,6,8,7,10,11,6,3]} 1. e4 {[%emt 0:00:03]} c5 {[%emt 0:06:23]} 2. Nf3 {[%emt 0:00:07][%cal Bg1f3,Bf3d4,Bd4b5][%mdl 32]} Nc6 {[%emt 0:00:04]} 3. d4 {[%emt 0:03:56]} cxd4 {[%emt 0:00:06]} 4. Nxd4 {[%emt 0:00:02]} e5 {[%emt 0:02:10]} 5. Nb5 {[%emt 0:00:35]} d6 {[%emt 1:24:17]} 6. c4 {[%emt 0:01:14]} g6 {[%emt 0:00:00][%cal Bg7g6,Bg6f5,Bf5f4][%mdl 32]} 7. N1c3 {[%emt 0:01:07] [#] Nd5 would now be deadly.} a6 {[%emt 0:00:00]} 8. Na3 {[%emt 0:00:05]} Be6 {[%emt 0:00:00] White has an edge.} 9. Be3 {[%emt 0:03:14]} f5 {[%emt 0:00:00]} 10. exf5 {[%emt 0:04:03]} gxf5 {[%emt 0:00:00]} 11. Nd5 {[%emt 0:02:51]} Bxd5 {[%emt 0:00:00]} 12. Qxd5 {[%emt 0:00:32] White wants to play Qe6+.} f4 {[%emt 0:00:00]} 13. Bd2 {[%emt 0:02:14]} Nf6 {[%emt 0:00:00]} 14. Qe6+ {[%emt 0:01:02]} Qe7 {[%emt 0:00:00]} 15. Qxe7+ {[%emt 0:00:08]} Bxe7 {[%emt 0:00:00] The position is equal.} 16. Nc2 {[%emt 0:01:18]} O-O-O {[%emt 0:00:00]} 17. g3 {[%emt 0:06:05]} d5 {[%emt 0:00:00]} 18. cxd5 {[%emt 0:07:58]} Nxd5 {[%emt 0:00:00]} 19. Bg2 {[%emt 0:04:57] Weighted Error Value: White=0.05 (flawless) /Black=0.06 (flawless) .  Inaccurate:     	White=1     	---        OK:         	White=5     	Black=4      Best:        	White=1     	Black=1} *

[Event "VIII Open Semana Santa 2024"]
[Site "San Vicente del Raspeig"]
[Date "2024.04.01"]
[Round "9.9"]
[White "Garriga Cazorla, Pere"]
[Black "Patrelakis, Evaggelos"]
[Result "0-1"]
[ECO "A09"]
[WhiteElo "2460"]
[BlackElo "2430"]
[Annotator "TA"]
[PlyCount "104"]
[EventDate "2024.03.27"]
[EventType "swiss"]
[EventCountry "ESP"]
[SourceTitle "playchess.com"]
[Source "ChessBase"]
[SourceQuality "1"]
[TimeControl "5400+30"]

{[%evp 10,104,-14,-45,-42,-39,-29,-35,-35,-47,-34,-29,-35,-46,-43,-51,-62,-58,-35,-22,-13,-14,-34,-41,-12,-21,-26,-22,-11,-18,-27,-131,-121,-115,-106,-140,-125,-132,-132,-152,-152,-152,-152,-153,-161,-148,-147,-203,-210,-436,-445,-382,-305,-580,-336,-421,-408,-370,-122,-123,-124,-124,-124,-158,-160,-210,-195,-778,-561,-864,-494,-913,-420,-1316,-1186,-1346,-1278,-1204,-1078,-631,-554,-2191,-1929,-1567,-1500,-1631,-1490,-1307,0,-2451,-2063,-7949,-6748,-6544,-6536,-2647,-2170]} 1. Nf3 {[%emt 0:11:19]} d5 {[%emt 0:00:31]} 2. c4 {[%emt 0:00:13]} d4 {[%emt 0:00:25]} 3. g3 {[%emt 0:00:04]} Nc6 {[%emt 0:00:23]} 4. Bg2 {[%emt 0:00:29]} e5 {[%emt 0:00:33]} 5. d3 {[%emt 0:00:13]} Bb4+ {[%emt 0:00:46]} 6. Nbd2 {[%emt 0:00:04][%cal Bb1d2,Bd2b3,Bb3c5][%mdl 32]} a5 {[%emt 0:01:15]} 7. O-O {[%emt 0:02:03]} Nf6 {[%emt 0:01:44]} 8. Ne1 {[%emt 0:01:14]} O-O {[%emt 0:03:41] Black is slightly better.} 9. Nc2 {[%emt 0:02:04]} Bc5 {[%emt 0:03:00]} 10. Nb3 {[%emt 0:04:07]} Be7 {[%emt 0:02:36]} 11. Bg5 {[%emt 0:03:39]} h6 {[%emt 0:10:29]} 12. Bxf6 {[%emt 0:02:12]} Bxf6 {[%emt 0:00:02]} 13. e3 {[%emt 0:05:53]} a4 {[%emt 0:03:16]} 14. Nc5 {[%emt 0:05:22]} Be7 {[%emt 0:00:53]} 15. exd4 {[%emt 0:00:16]} exd4 {[%emt 0:00:37]} 16. Ne4 {[%emt 0:01:01]} Be6 {[%emt 0:01:37]} 17. Qh5 {[%emt 0:10:36]} Ra5 {[%emt 0:02:11]} 18. Qe2 {[%emt 0:00:11]} Qd7 {[%emt 0:01:12]} 19. f4 {[%emt 0:00:40]} b5 {[%emt 0:07:02]} 20. cxb5 {[%emt 0:08:55]} (20. b3 $11 {keeps the balance.}) 20... Rxb5 $17 {[%emt 0:00:10]} 21. Na3 {[%emt 0:00:04]} Rb6 {[%emt 0:08:02] Black is more active.} 22. Rac1 {[%emt 0:11:31] [#]} Rfb8 $1 {[%emt 0:01:39]} 23. Nd2 {[%emt 0:02:14]} Na5 {[%emt 0:11:24]} ({But not} 23... Bxa2 $6 24. Nac4 Nb4 25. Nxb6 cxb6 26. Be4 $11) 24. Nac4 {[%emt 0:09:38]} Nxc4 {[%emt 0:00:13]} 25. Nxc4 {[%emt 0:00:02]} Bxc4 {[%emt 0:00:15]} 26. Rxc4 {[%emt 0:00:05]} Rxb2 {[%emt 0:00:19]} 27. Rc2 {[%emt 0:00:01] [#]} a3 {[%emt 0:01:19]} 28. Rfc1 {[%emt 0:01:30]} (28. Rf2 $17) 28... Bd6 $19 {[%emt 0:01:43]} 29. Be4 $2 {[%emt 0:03:50] White is weak on the dark squares} (29. Qe4) 29... Qe6 {[%emt 0:01:23]} 30. Ra1 {[%emt 0:02:23]} g6 {[%emt 0:02:30]} 31. Qg2 $2 {[%emt 0:03:02]} (31. Qf2) 31... Rxc2 {[%emt 0:00:28]} 32. Qxc2 {[%emt 0:00:03]} Rb2 {[%emt 0:00:09]} 33. Qc6 {[%emt 0:00:33]} Rxa2 $2 {[%emt 0:01:19]} (33... Qg4 $19 {[%cal Og4e2] is more deadly. ...Qe2! would now be deadly.} 34. Bf3 Qh3) 34. Rxa2 $17 {[%emt 0:00:31]} Qxa2 $19 {[%emt 0:00:03][%mdl 4096] Endgame. KQB-KQB} 35. Bd5 {[%emt 0:00:05]} Qe2 {[%emt 0:12:59] Prevents Qe8+.} 36. Qd7 {[%emt 0:02:16]} Qe7 {[%emt 0:00:02]} ({Stronger than} 36... Qxd3 37. Qxf7+ Kh8 38. Qg8#) 37. Qxe7 {[%emt 0:00:34]} (37. Qa4 $17) 37... Bxe7 $17 {[%emt 0:00:04] KB-KB} 38. g4 $2 {[%emt 0:00:15]} (38. Kg2) 38... Bd6 $19 {[%emt 0:04:12]} 39. f5 {[%emt 0:00:05]} gxf5 {[%emt 0:01:49]} 40. gxf5 {[%emt 0:00:05]} (40. h3 $142) 40... Kf8 {[%emt 0:00:25]} 41. Kg2 {[%emt 0:01:10]} (41. f6 $142) 41... Ke7 {[%emt 0:00:14]} 42. h3 {[%emt 0:00:10]} Bf4 {[%emt 0:00:38]} 43. Kf3 {[%emt 0:00:44]} Be3 {[%emt 0:00:06]} 44. Ba2 {[%emt 0:04:55]} f6 {[%emt 0:00:39] Strongly threatening ...Kd6.} 45. Ke2 {[%emt 0:00:26]} Kd6 {[%emt 0:00:06]} 46. Be6 {[%emt 0:00:21]} Ke5 {[%emt 0:00:18] Threatens to win with ...Kf4.} 47. Kf3 {[%emt 0:00:07]} Bg5 {[%emt 0:01:03] And now ...h5 would win.} 48. Kg4 {[%emt 0:01:37]} Be3 {[%emt 0:03:11]} (48... Kd6 $142 49. Kh5 Ke5) 49. Kf3 $1 {[%emt 0:01:42]} h5 {[%emt 0:00:19] Black is clearly winning.} 50. h4 {[%emt 0:00:20]} Bd2 {[%emt 0:00:29]} 51. Ke2 {[%emt 0:02:29]} Bc3 {[%emt 0:00:05]} 52. Kf3 {[%emt 0:01:25]} Be1 {[%emt 0:00:07] Weighted Error Value: White=0.77/Black=0.25 (precise) .  Missed win:     	---       	Black=1      Mistake:       	White=8     	---        Inaccurate:     	White=3     	Black=2      OK:         	White=13    	Black=11     Best:        	White=1     	Black=2} 0-1

[Event "VIII Open Semana Santa 2024"]
[Site "San Vicente del Raspeig"]
[Date "2024.04.01"]
[Round "9.10"]
[White "Marin, Mihail"]
[Black "Zylka, Stanislaw"]
[Result "1/2-1/2"]
[ECO "A07"]
[WhiteElo "2456"]
[BlackElo "2401"]
[Annotator "TA"]
[PlyCount "20"]
[EventDate "2024.03.27"]
[EventType "swiss"]
[EventCountry "ESP"]
[SourceTitle "playchess.com"]
[Source "ChessBase"]
[SourceQuality "1"]
[TimeControl "5400+30"]

{[%evp 11,20,0,0,0,3,-13,7,12,14,0,8]} 1. Nf3 {[%emt 0:02:18]} d5 {[%emt 0:00:15]} 2. g3 {[%emt 0:00:37]} g6 {[%emt 0:01:09]} 3. Bg2 {[%emt 0:00:34]} Bg7 {[%emt 0:00:07]} 4. O-O {[%emt 0:00:34]} e5 {[%emt 0:00:09]} 5. d3 {[%emt 0:00:06]} Ne7 {[%emt 0:00:21]} 6. e4 {[%emt 0:00:08]} O-O {[%emt 0:00:34] The position is equal.} 7. c3 {[%emt 0:00:05]} a5 {[%emt 0:02:23]} 8. a4 {[%emt 0:00:08]} Nbc6 {[%emt 0:00:21]} 9. Na3 {[%emt 0:00:07]} h6 {[%emt 0:00:42]} 10. Nb5 {[%emt 0:03:34]} Be6 {[%emt 0:01:57] Not much happened in this game.   Weighted Error Value: White=0.08 (flawless) /Black=0.06 (flawless) .  OK:         	White=1     	Black=2} 1/2-1/2

[Event "VIII Open Semana Santa 2024"]
[Site "San Vicente del Raspeig"]
[Date "2024.04.01"]
[Round "9.11"]
[White "Ghazarian, Kirk"]
[Black "Merario Alarcon, Andres"]
[Result "1/2-1/2"]
[ECO "D30"]
[WhiteElo "2454"]
[BlackElo "2401"]
[Annotator "TA"]
[PlyCount "26"]
[EventDate "2024.03.27"]
[EventType "swiss"]
[EventCountry "ESP"]
[SourceTitle "playchess.com"]
[Source "ChessBase"]
[SourceQuality "1"]
[TimeControl "5400+30"]

{[%evp 16,26,51,25,27,16,19,19,29,13,15,5,1]} 1. Nf3 {[%emt 0:00:04]} d5 {[%emt 0:07:01]} 2. g3 {[%emt 0:00:26]} Nf6 {[%emt 0:01:02]} 3. Bg2 {[%emt 0:00:15]} e6 {[%emt 0:00:25]} 4. O-O {[%emt 0:00:20]} Be7 {[%emt 0:01:20]} 5. c4 {[%emt 0:00:06]} c5 {[%emt 0:03:46]} 6. cxd5 {[%emt 0:02:34]} exd5 {[%emt 0:00:08]} 7. d4 {[%emt 0:00:16]} Nc6 {[%emt 0:03:08]} 8. dxc5 {[%emt 0:00:48]} Bxc5 {[%emt 0:00:09]} 9. a3 {[%emt 0:00:02]} Ne4 {[%emt 0:02:51]} 10. b4 {[%emt 0:01:55]} Be7 {[%emt 0:00:15]} 11. Bb2 {[%emt 0:01:00]} Bf6 {[%emt 0:00:53]} 12. Bxf6 {[%emt 0:03:53]} Qxf6 {[%emt 0:01:16]} 13. Ra2 {[%emt 0:00:40]} O-O {[%emt 0:01:21] An uneventful encounter.   Weighted Error Value: White=0.12 (very precise) /Black=0.00 (flawless) .  OK:         	---       	Black=3} 1/2-1/2

[Event "VIII Open Semana Santa 2024"]
[Site "San Vicente del Raspeig"]
[Date "2024.04.01"]
[Round "9.12"]
[White "Levin, Guy"]
[Black "Badelka, Olga"]
[Result "1-0"]
[ECO "A28"]
[WhiteElo "2452"]
[BlackElo "2377"]
[Annotator "TA"]
[PlyCount "91"]
[EventDate "2024.03.27"]
[EventType "swiss"]
[EventCountry "ESP"]
[SourceTitle "playchess.com"]
[Source "ChessBase"]
[SourceQuality "1"]
[TimeControl "5400+30"]

{[%evp 13,91,4,2,9,3,0,47,44,66,47,93,0,80,77,93,62,62,20,27,25,52,43,42,45,35,45,40,43,45,45,40,43,75,79,133,131,152,152,152,136,153,160,147,155,164,165,188,196,220,212,243,243,233,216,205,191,205,202,217,225,228,232,363,346,345,333,327,344,314,332,311,327,599,579,618,625,795,656,805,797]} 1. c4 {[%emt 0:00:08]} Nf6 {[%emt 0:00:08]} 2. Nc3 {[%emt 0:00:05]} e5 {[%emt 0:00:06]} 3. Nf3 {[%emt 0:00:55]} Nc6 {[%emt 0:00:06]} 4. a3 {[%emt 0:00:26]} d5 {[%emt 0:02:31]} 5. cxd5 {[%emt 0:00:07]} Nxd5 {[%emt 0:00:04]} 6. Qc2 {[%emt 0:00:20]} Be7 {[%emt 0:02:12]} 7. e3 {[%emt 0:00:23]} O-O {[%emt 0:00:41]} 8. Nxd5 {[%emt 0:00:05]} Qxd5 {[%emt 0:00:05]} 9. Bd3 {[%emt 0:00:08]} h6 {[%emt 0:00:55]} (9... Kh8 $11 {should be considered.}) 10. b4 $14 {[%emt 0:00:41] White is slightly better.} Bf6 {[%emt 0:12:30]} 11. Bb2 {[%emt 0:01:57]} a6 {[%emt 0:03:51]} (11... Qd6 $14) 12. Bh7+ $16 {[%emt 0:03:10]} Kh8 {[%emt 0:00:09]} 13. Be4 {[%emt 0:00:04]} Qd6 {[%emt 0:00:09]} 14. Bxc6 {[%emt 0:06:12]} bxc6 {[%emt 0:00:05]} 15. d4 {[%emt 0:00:11]} exd4 {[%emt 0:00:40]} 16. Bxd4 {[%emt 0:05:54]} Bxd4 {[%emt 0:05:46]} 17. Nxd4 {[%emt 0:01:00]} a5 {[%emt 0:00:12]} 18. Qxc6 {[%emt 0:32:55]} Qxc6 {[%emt 0:00:09]} 19. Nxc6 {[%emt 0:00:07][%cal Bd4c6,Bc6b4,Bb4d3][%mdl 32]} axb4 {[%emt 0:00:02]} 20. Nxb4 {[%emt 0:00:08]} c5 {[%emt 0:01:00]} 21. Nd3 {[%emt 0:03:09]} c4 {[%emt 0:00:05]} 22. Nb4 {[%emt 0:06:33]} f5 {[%emt 0:01:42]} 23. Kd2 {[%emt 0:03:49] Black is on the road to losing.} f4 {[%emt 0:03:27] [#]} (23... Rd8+ $142 24. Kc3 Ra4) 24. e4 $1 {[%emt 0:00:27]} f3 {[%emt 0:00:39] [#]} 25. g3 {[%emt 0:00:13]} Ra5 {[%emt 0:11:20]} 26. Rhc1 {[%emt 0:06:18]} Be6 {[%emt 0:10:32]} 27. Ke3 {[%emt 0:00:59]} g5 {[%emt 0:03:28]} 28. Nc6 {[%emt 0:03:27]} Ra4 {[%emt 0:00:10]} 29. Nd4 {[%emt 0:00:40]} Bg4 {[%emt 0:00:05]} 30. Rc3 {[%emt 0:01:22]} Rb8 {[%emt 0:10:47]} 31. Rac1 {[%emt 0:05:28]} (31. Nxf3 $6 Bxf3 32. Kxf3 Rb3 33. Rxb3 cxb3) 31... Rb2 {[%emt 0:00:53]} 32. Nxf3 {[%emt 0:01:43]} ({Don't do} 32. Rxc4 Rxa3+ 33. R4c3 Ra8 34. Nxf3 Raa2) 32... Ra2 {[%emt 0:02:01]} 33. Nd4 {[%emt 0:03:16]} (33. Rxc4 $2 Rxc4 (33... R2xa3+ $2 {perishes.} 34. R1c3 $18) 34. Rxc4 Rxa3+ 35. Kd4 Rxf3 $19) 33... R4xa3 {[%emt 0:00:21]} 34. f3 {[%emt 0:02:35]} Bh5 {[%emt 0:00:15]} 35. h4 {[%emt 0:01:54]} gxh4 {[%emt 0:07:25]} 36. gxh4 {[%emt 0:00:01]} Bf7 {[%emt 0:00:16]} 37. Nf5 {[%emt 0:03:32]} h5 {[%emt 0:00:30]} (37... Ra6 {is a better defense.} 38. Rb1 Be6) 38. Nd6 $18 {[%emt 0:01:15]} Bg8 {[%emt 0:00:03]} 39. Rxa3 {[%emt 0:02:00]} Rxa3+ {[%emt 0:00:04][%mdl 4096] Endgame. KRB-KRN} 40. Kf4 {[%emt 0:00:09]} Ra6 {[%emt 0:01:25]} 41. Ke5 {[%emt 0:00:35]} ({Worse is} 41. Nxc4 Rc6 $17) 41... Rc6 {[%emt 0:05:05]} 42. Rc3 {[%emt 0:00:24] aiming for f4.} Kg7 $2 {[%emt 0:00:15]} (42... Kh7 {was worth a try.} 43. f4 Rc7) 43. f4 {[%emt 0:00:36][%cal Bf3f4,Bf4f5][%mdl 32] White is clearly winning.} Kf8 {[%emt 0:00:05]} 44. f5 {[%emt 0:01:26]} Ra6 {[%emt 0:01:32]} 45. Nxc4 {[%emt 0:01:18]} Ke7 {[%emt 0:00:04] Prevents Nd6.} 46. Ne3 {[%emt 0:00:38] Weighted Error Value: White=0.08 (flawless) /Black=0.25 (precise) .  Mistake:       	---       	Black=5      Inaccurate:     	White=2     	Black=3      OK:         	White=20    	Black=13     Best:        	White=2     	---        Strong:       	White=1     	---} 1-0